[Event "Late-Titled-Tuesday-Blitz-September-19-2023"]
[Site "Chess.com"]
[Date "2023.09.19"]
[Round "2"]
[White "krzyzan94"]
[Black "leoduarte"]
[Result "0-1"]
[WhiteElo "2789"]
[BlackElo "2486"]
[TimeControl "180+1"]
[EndTime "14:17:04 PDT"]
[Termination "leoduarte won on time"]

1. e4 {[%clk 0:03:00.9]} 1... c5 {[%clk 0:02:58.7]} 2. Nf3 {[%clk 0:03:00.8]}
2... e6 {[%clk 0:02:59]} 3. d4 {[%clk 0:03:00.7]} 3... cxd4 {[%clk 0:02:59.8]}
4. Nxd4 {[%clk 0:03:01.6]} 4... Nf6 {[%clk 0:03:00.4]} 5. Nc3 {[%clk 0:02:59.6]}
5... Nc6 {[%clk 0:03:01.1]} 6. a3 {[%clk 0:02:57.1]} 6... d5 {[%clk 0:02:59]} 7.
Bb5 {[%clk 0:02:52.4]} 7... Bd7 {[%clk 0:02:58.8]} 8. exd5 {[%clk 0:02:51]} 8...
exd5 {[%clk 0:02:59]} 9. Be3 {[%clk 0:02:45.5]} 9... Be7 {[%clk 0:02:52.6]} 10.
O-O {[%clk 0:02:44]} 10... O-O {[%clk 0:02:52.3]} 11. Be2 {[%clk 0:02:44]} 11...
Re8 {[%clk 0:02:51.3]} 12. Re1 {[%clk 0:02:37.4]} 12... h6 {[%clk 0:02:51.3]}
13. Bf3 {[%clk 0:02:33.2]} 13... Be6 {[%clk 0:02:19.9]} 14. Ncb5 {[%clk
0:02:22.7]} 14... a6 {[%clk 0:02:09.3]} 15. Nxe6 {[%clk 0:02:19]} 15... fxe6
{[%clk 0:02:06.5]} 16. Nd4 {[%clk 0:02:18.6]} 16... e5 {[%clk 0:01:58.6]} 17.
Nxc6 {[%clk 0:01:48.6]} 17... bxc6 {[%clk 0:01:57.1]} 18. c4 {[%clk 0:01:49.5]}
18... e4 {[%clk 0:01:39.4]} 19. Be2 {[%clk 0:01:38.2]} 19... Bd6 {[%clk
0:01:39]} 20. cxd5 {[%clk 0:01:35.1]} 20... cxd5 {[%clk 0:01:39.9]} 21. Rc1
{[%clk 0:01:31.3]} 21... Qe7 {[%clk 0:01:37.5]} 22. Bd4 {[%clk 0:01:25.9]} 22...
Be5 {[%clk 0:01:22.7]} 23. Rc6 {[%clk 0:01:18.9]} 23... a5 {[%clk 0:01:16.2]}
24. h3 {[%clk 0:01:10.4]} 24... Rec8 {[%clk 0:01:15.7]} 25. Rxc8+ {[%clk
0:00:51.5]} 25... Rxc8 {[%clk 0:01:16.6]} 26. Qd2 {[%clk 0:00:52.2]} 26... Bxd4
{[%clk 0:01:11.6]} 27. Qxd4 {[%clk 0:00:53.1]} 27... Qc5 {[%clk 0:01:11.3]} 28.
Qa4 {[%clk 0:00:38.9]} 28... Qc2 {[%clk 0:01:03.2]} 29. Qxa5 {[%clk 0:00:33.7]}
29... Qxb2 {[%clk 0:01:03.3]} 30. Bg4 {[%clk 0:00:33.8]} 30... Rc1 {[%clk
0:00:22.5]} 31. Be6+ {[%clk 0:00:22.2]} 31... Kf8 {[%clk 0:00:20.4]} 32. Kh2
{[%clk 0:00:03.5]} 32... Qb8+ {[%clk 0:00:18.4]} 33. f4 {[%clk 0:00:01.5]} 33...
exf3+ {[%clk 0:00:17.6]} 34. g3 {[%clk 0:00:01.4]} 34... Rc2+ {[%clk 0:00:16.7]}
35. Kh1 {[%clk 0:00:01.3]} 35... f2 {[%clk 0:00:16.2]} 0-1

[Event "Late-Titled-Tuesday-Blitz-September-19-2023"]
[Site "Chess.com"]
[Date "2023.09.19"]
[Round "2"]
[White "Chessdemon2019"]
[Black "azikom"]
[Result "0-1"]
[WhiteElo "2385"]
[BlackElo "2626"]
[TimeControl "180+1"]
[EndTime "14:17:05 PDT"]
[Termination "azikom won by resignation"]

1. e4 {[%clk 0:03:00.9]} 1... c5 {[%clk 0:03:00]} 2. Nf3 {[%clk 0:03:00.9]} 2...
e6 {[%clk 0:03:00.9]} 3. d4 {[%clk 0:03:00.3]} 3... cxd4 {[%clk 0:03:01.3]} 4.
Nxd4 {[%clk 0:03:00.9]} 4... a6 {[%clk 0:03:01.9]} 5. c4 {[%clk 0:02:54.9]} 5...
g6 {[%clk 0:03:00.9]} 6. Nc3 {[%clk 0:02:53.3]} 6... Bg7 {[%clk 0:03:00.5]} 7.
Be3 {[%clk 0:02:53.6]} 7... Ne7 {[%clk 0:02:59.7]} 8. Qd2 {[%clk 0:02:50.5]}
8... d5 {[%clk 0:02:48.6]} 9. exd5 {[%clk 0:02:47]} 9... exd5 {[%clk 0:02:47.9]}
10. O-O-O {[%clk 0:02:44.3]} 10... dxc4 {[%clk 0:02:43.5]} 11. Bxc4 {[%clk
0:02:43.1]} 11... Qc7 {[%clk 0:02:43]} 12. Bb3 {[%clk 0:02:39.7]} 12... O-O
{[%clk 0:02:38.7]} 13. Bh6 {[%clk 0:02:39.1]} 13... Nbc6 {[%clk 0:02:27.2]} 14.
Nf3 {[%clk 0:02:34.6]} 14... Bf5 {[%clk 0:02:15]} 15. Bxg7 {[%clk 0:02:31.2]}
15... Kxg7 {[%clk 0:02:14.7]} 16. Rhe1 {[%clk 0:02:28.9]} 16... Rad8 {[%clk
0:02:08.8]} 17. Qe3 {[%clk 0:02:29.1]} 17... Rxd1+ {[%clk 0:02:02]} 18. Rxd1
{[%clk 0:02:29.2]} 18... b5 {[%clk 0:01:53.3]} 19. a3 {[%clk 0:02:12.7]} 19...
Na5 {[%clk 0:01:34.5]} 20. Bc2 {[%clk 0:02:07.2]} 20... Bxc2 {[%clk 0:01:15.9]}
21. Kxc2 {[%clk 0:02:07.3]} 21... Nc4 {[%clk 0:00:55.6]} 22. Qd4+ {[%clk
0:02:05.7]} 22... f6 {[%clk 0:00:50.3]} 23. Ng5 {[%clk 0:01:47.7]} 23... Qc6
{[%clk 0:00:35.2]} 24. Qd7 {[%clk 0:01:30.9]} 24... Qxd7 {[%clk 0:00:30.4]} 25.
Rxd7 {[%clk 0:01:30.8]} 25... fxg5 {[%clk 0:00:30.2]} 26. Rxe7+ {[%clk 0:01:31]}
26... Kh6 {[%clk 0:00:26.4]} 27. Ne4 {[%clk 0:01:30]} 27... g4 {[%clk
0:00:26.4]} 28. Kc3 {[%clk 0:01:19.4]} 28... Rf4 {[%clk 0:00:25.3]} 29. a4
{[%clk 0:01:10.2]} 29... Nb6 {[%clk 0:00:23.5]} 30. Kd4 {[%clk 0:01:06]} 30...
Nxa4 {[%clk 0:00:22.5]} 31. Ke3 {[%clk 0:01:00.8]} 31... Rf5 {[%clk 0:00:20.6]}
32. Nd6 {[%clk 0:00:56.7]} 32... Rf6 {[%clk 0:00:20]} 33. Nf7+ {[%clk
0:00:54.9]} 33... Kg7 {[%clk 0:00:18.2]} 34. Ng5+ {[%clk 0:00:54.2]} 34... Kh6
{[%clk 0:00:18.3]} 35. h4 {[%clk 0:00:50.1]} 35... gxh3 {[%clk 0:00:17.8]} 36.
f4 {[%clk 0:00:50.3]} 36... Kh5 {[%clk 0:00:14.7]} 37. gxh3 {[%clk 0:00:50.5]}
37... Kh4 {[%clk 0:00:14.8]} 38. Kf3 {[%clk 0:00:50.8]} 38... h6 {[%clk
0:00:14]} 39. Rh7 {[%clk 0:00:50.9]} 39... h5 {[%clk 0:00:14.1]} 40. Rc7 {[%clk
0:00:39.5]} 40... Nxb2 {[%clk 0:00:13.1]} 41. Rc2 {[%clk 0:00:32.9]} 41... Nd3
{[%clk 0:00:12.7]} 42. Kg2 {[%clk 0:00:30.7]} 42... Nxf4+ {[%clk 0:00:11.9]} 43.
Kh2 {[%clk 0:00:30.9]} 43... Kxg5 {[%clk 0:00:12.7]} 0-1

[Event "Late-Titled-Tuesday-Blitz-September-19-2023"]
[Site "Chess.com"]
[Date "2023.09.19"]
[Round "2"]
[White "RIPOL"]
[Black "canary2016"]
[Result "0-1"]
[WhiteElo "2415"]
[BlackElo "2149"]
[TimeControl "180+1"]
[EndTime "14:17:09 PDT"]
[Termination "canary2016 won by checkmate"]

1. d4 {[%clk 0:03:00.9]} 1... Nf6 {[%clk 0:02:56.9]} 2. Bg5 {[%clk 0:02:59.7]}
2... e6 {[%clk 0:02:55.4]} 3. e4 {[%clk 0:02:58.6]} 3... Be7 {[%clk 0:02:51]} 4.
Bd3 {[%clk 0:02:56.9]} 4... O-O {[%clk 0:02:49.6]} 5. f4 {[%clk 0:02:48.9]} 5...
h6 {[%clk 0:02:48.9]} 6. Bh4 {[%clk 0:02:48.1]} 6... b6 {[%clk 0:02:41.1]} 7.
Nd2 {[%clk 0:02:46.1]} 7... Bb7 {[%clk 0:02:40.6]} 8. Ngf3 {[%clk 0:02:45.1]}
8... d6 {[%clk 0:02:37]} 9. c3 {[%clk 0:02:43.3]} 9... Nbd7 {[%clk 0:02:36.2]}
10. O-O {[%clk 0:02:42.1]} 10... c5 {[%clk 0:02:34.9]} 11. Qe2 {[%clk
0:02:39.8]} 11... Rc8 {[%clk 0:02:33.6]} 12. a3 {[%clk 0:02:37.8]} 12... d5
{[%clk 0:02:23.1]} 13. e5 {[%clk 0:02:34.5]} 13... Ne8 {[%clk 0:02:23.2]} 14.
Bxe7 {[%clk 0:02:30.9]} 14... Qxe7 {[%clk 0:02:23.1]} 15. f5 {[%clk 0:02:29.2]}
15... exf5 {[%clk 0:02:14.2]} 16. Bxf5 {[%clk 0:02:28]} 16... Nc7 {[%clk
0:02:14.8]} 17. Bxd7 {[%clk 0:02:15]} 17... Qxd7 {[%clk 0:02:13.4]} 18. Nh4
{[%clk 0:02:14.9]} 18... cxd4 {[%clk 0:02:05.9]} 19. cxd4 {[%clk 0:02:13.5]}
19... Ne6 {[%clk 0:02:06.2]} 20. Nf5 {[%clk 0:02:10.9]} 20... Rc2 {[%clk
0:02:02.6]} 21. Qd3 {[%clk 0:01:36.8]} 21... Rfc8 {[%clk 0:01:48.9]} 22. Rf2
{[%clk 0:01:26.6]} 22... Rxb2 {[%clk 0:01:21.4]} 23. Raf1 {[%clk 0:01:24.6]}
23... Rcc2 {[%clk 0:00:57.6]} 24. Nd6 {[%clk 0:01:07.9]} 24... Nd8 {[%clk
0:00:56.5]} 25. Qe3 {[%clk 0:00:44.7]} 25... Ba6 {[%clk 0:00:52.2]} 26. Nxf7
{[%clk 0:00:34.5]} 26... Bxf1 {[%clk 0:00:46.9]} 27. Nxh6+ {[%clk 0:00:33.8]}
27... gxh6 {[%clk 0:00:38.4]} 28. Qxh6 {[%clk 0:00:31.8]} 28... Qg7 {[%clk
0:00:34.3]} 29. Qd6 {[%clk 0:00:26]} 29... Nf7 {[%clk 0:00:19.5]} 30. Qxd5
{[%clk 0:00:21.3]} 30... Rxd2 {[%clk 0:00:18.4]} 31. Rxd2 {[%clk 0:00:18.1]}
31... Rxd2 {[%clk 0:00:17.1]} 32. Kxf1 {[%clk 0:00:16]} 32... Rd1+ {[%clk
0:00:07.7]} 33. Kf2 {[%clk 0:00:14.3]} 33... Rd2+ {[%clk 0:00:07.6]} 34. Kf1
{[%clk 0:00:13.6]} 34... Rb2 {[%clk 0:00:07.1]} 35. Qa8+ {[%clk 0:00:09.5]}
35... Kh7 {[%clk 0:00:07.2]} 36. Qe4+ {[%clk 0:00:09.3]} 36... Kh8 {[%clk
0:00:06.8]} 37. Qh4+ {[%clk 0:00:09.1]} 37... Kg8 {[%clk 0:00:06.9]} 38. Qe7
{[%clk 0:00:07.5]} 38... Qxg2+ {[%clk 0:00:06.7]} 39. Ke1 {[%clk 0:00:07]} 39...
Qe2# {[%clk 0:00:06.6]} 0-1

[Event "Late-Titled-Tuesday-Blitz-September-19-2023"]
[Site "Chess.com"]
[Date "2023.09.19"]
[Round "2"]
[White "JackRodgers"]
[Black "IMSlavin"]
[Result "1-0"]
[WhiteElo "2500"]
[BlackElo "2289"]
[TimeControl "180+1"]
[EndTime "14:17:13 PDT"]
[Termination "JackRodgers won by resignation"]

1. d4 {[%clk 0:03:00.9]} 1... Nc6 {[%clk 0:03:00.3]} 2. d5 {[%clk 0:02:58.9]}
2... Ne5 {[%clk 0:02:59.9]} 3. Nf3 {[%clk 0:02:59.6]} 3... Ng6 {[%clk
0:02:58.8]} 4. e4 {[%clk 0:02:59]} 4... e5 {[%clk 0:02:59.1]} 5. h4 {[%clk
0:02:55.7]} 5... d6 {[%clk 0:02:57.3]} 6. h5 {[%clk 0:02:52]} 6... N6e7 {[%clk
0:02:56.9]} 7. c4 {[%clk 0:02:44.6]} 7... h6 {[%clk 0:02:55.9]} 8. Nc3 {[%clk
0:02:44.4]} 8... Nf6 {[%clk 0:02:55.9]} 9. Be2 {[%clk 0:02:41.1]} 9... Neg8
{[%clk 0:02:52.8]} 10. Be3 {[%clk 0:02:36.7]} 10... Be7 {[%clk 0:02:52.6]} 11.
c5 {[%clk 0:02:34.6]} 11... Ng4 {[%clk 0:02:49.5]} 12. Qd2 {[%clk 0:02:28.7]}
12... Nxe3 {[%clk 0:02:48.7]} 13. Qxe3 {[%clk 0:02:28.9]} 13... Nf6 {[%clk
0:02:48.2]} 14. cxd6 {[%clk 0:02:20.2]} 14... cxd6 {[%clk 0:02:47.8]} 15. Nd2
{[%clk 0:02:16]} 15... O-O {[%clk 0:02:46.8]} 16. O-O-O {[%clk 0:01:59]} 16...
a6 {[%clk 0:02:45.3]} 17. Rdg1 {[%clk 0:01:58.8]} 17... b5 {[%clk 0:02:45.1]}
18. g4 {[%clk 0:01:58.9]} 18... Nh7 {[%clk 0:02:44.8]} 19. Kb1 {[%clk
0:01:48.1]} 19... b4 {[%clk 0:02:37.9]} 20. Nd1 {[%clk 0:01:48.2]} 20... Bg5
{[%clk 0:02:32.8]} 21. Qd3 {[%clk 0:01:45.4]} 21... Bd7 {[%clk 0:02:32]} 22. Nc4
{[%clk 0:01:38.2]} 22... Bb5 {[%clk 0:02:28.2]} 23. b3 {[%clk 0:01:37.7]} 23...
Bf4 {[%clk 0:02:21.2]} 24. Nde3 {[%clk 0:01:36.3]} 24... g5 {[%clk 0:02:20.7]}
25. Nf5 {[%clk 0:01:33.8]} 25... Qf6 {[%clk 0:02:10.6]} 26. Qf3 {[%clk
0:01:32.5]} 26... Bxc4 {[%clk 0:02:06.6]} 27. Bxc4 {[%clk 0:01:30.9]} 27... a5
{[%clk 0:02:05.9]} 28. Re1 {[%clk 0:01:20.2]} 28... a4 {[%clk 0:02:05.4]} 29.
Re2 {[%clk 0:01:20.8]} 29... axb3 {[%clk 0:02:03.2]} 30. Bxb3 {[%clk 0:01:21.7]}
30... Rfc8 {[%clk 0:01:47.6]} 31. Qd3 {[%clk 0:01:17.2]} 31... Rc3 {[%clk
0:01:43.8]} 32. Qb5 {[%clk 0:01:17]} 32... Rac8 {[%clk 0:01:43.2]} 33. Rc2
{[%clk 0:01:14.8]} 33... Nf8 {[%clk 0:01:37.2]} 34. Qxb4 {[%clk 0:01:09.9]}
34... Rxc2 {[%clk 0:01:36.4]} 35. Bxc2 {[%clk 0:01:10.5]} 35... Kh7 {[%clk
0:01:36.5]} 36. Qxd6 {[%clk 0:01:07.9]} 36... Qxd6 {[%clk 0:01:17]} 37. Nxd6
{[%clk 0:01:07.9]} 37... Rc7 {[%clk 0:01:17.3]} 38. Ba4 {[%clk 0:00:56.6]} 38...
Ra7 {[%clk 0:01:10.9]} 39. Bc6 {[%clk 0:00:56.5]} 39... Nd7 {[%clk 0:01:09.9]}
40. Bxd7 {[%clk 0:00:55.7]} 40... Rxd7 {[%clk 0:01:09.4]} 41. Nc4 {[%clk
0:00:45]} 41... Rc7 {[%clk 0:01:06.4]} 42. Nb2 {[%clk 0:00:43.9]} 42... Rb7
{[%clk 0:01:02.7]} 43. Rd1 {[%clk 0:00:43.1]} 43... Kg7 {[%clk 0:00:58.7]} 44.
d6 {[%clk 0:00:42.1]} 44... Rd7 {[%clk 0:00:58.6]} 45. Nc4 {[%clk 0:00:40]}
45... Kf6 {[%clk 0:00:58.3]} 46. Kc2 {[%clk 0:00:40.4]} 46... Ke6 {[%clk
0:00:57.9]} 47. Kc3 {[%clk 0:00:39]} 47... Ra7 {[%clk 0:00:53.5]} 48. a3 {[%clk
0:00:37.4]} 48... Rd7 {[%clk 0:00:44.5]} 49. a4 {[%clk 0:00:36.9]} 49... Bh2
{[%clk 0:00:38.6]} 50. a5 {[%clk 0:00:35.3]} 50... Bf4 {[%clk 0:00:37.9]} 51.
Kb4 {[%clk 0:00:34.7]} 51... Rb7+ {[%clk 0:00:35.5]} 52. Nb6 {[%clk 0:00:35.2]}
52... Ra7 {[%clk 0:00:19.2]} 53. d7 {[%clk 0:00:34.5]} 1-0

[Event "Late-Titled-Tuesday-Blitz-September-19-2023"]
[Site "Chess.com"]
[Date "2023.09.19"]
[Round "2"]
[White "Tomytoteph"]
[Black "hansen"]
[Result "0-1"]
[WhiteElo "2574"]
[BlackElo "2933"]
[TimeControl "180+1"]
[EndTime "14:17:14 PDT"]
[Termination "hansen won by resignation"]

1. e4 {[%clk 0:03:00.9]} 1... e5 {[%clk 0:02:57.8]} 2. Nf3 {[%clk 0:03:01.1]}
2... Nc6 {[%clk 0:02:58.1]} 3. Bb5 {[%clk 0:03:00.7]} 3... a6 {[%clk 0:02:58.6]}
4. Ba4 {[%clk 0:03:01]} 4... Nf6 {[%clk 0:02:56.3]} 5. O-O {[%clk 0:03:01]} 5...
Be7 {[%clk 0:02:54.6]} 6. Re1 {[%clk 0:03:01.1]} 6... b5 {[%clk 0:02:55]} 7. Bb3
{[%clk 0:03:00.9]} 7... d6 {[%clk 0:02:55.5]} 8. c3 {[%clk 0:03:00.5]} 8... O-O
{[%clk 0:02:55.6]} 9. h3 {[%clk 0:03:00.8]} 9... Na5 {[%clk 0:02:55.4]} 10. Bc2
{[%clk 0:03:00.8]} 10... c5 {[%clk 0:02:55.8]} 11. d4 {[%clk 0:03:01.1]} 11...
Qc7 {[%clk 0:02:56.7]} 12. d5 {[%clk 0:03:01.5]} 12... Nd7 {[%clk 0:02:54.4]}
13. a4 {[%clk 0:02:58.8]} 13... Nb6 {[%clk 0:02:54.1]} 14. axb5 {[%clk
0:02:58.3]} 14... axb5 {[%clk 0:02:55]} 15. Nbd2 {[%clk 0:02:58.1]} 15... c4
{[%clk 0:02:50.8]} 16. Nf1 {[%clk 0:02:54.5]} 16... Bd7 {[%clk 0:02:50.7]} 17.
Be3 {[%clk 0:02:46.8]} 17... Na4 {[%clk 0:02:49.2]} 18. Ra2 {[%clk 0:02:43.2]}
18... Nc5 {[%clk 0:02:46.7]} 19. N3d2 {[%clk 0:02:24.7]} 19... Rfb8 {[%clk
0:02:41.8]} 20. Qe2 {[%clk 0:02:21.7]} 20... Ncb3 {[%clk 0:02:29.6]} 21. Rb1
{[%clk 0:01:52.8]} 21... g6 {[%clk 0:02:24.2]} 22. Qd1 {[%clk 0:01:47.2]} 22...
b4 {[%clk 0:02:17.4]} 23. Nxb3 {[%clk 0:01:22.1]} 23... cxb3 {[%clk 0:02:17.3]}
24. Bxb3 {[%clk 0:01:21.8]} 24... bxc3 {[%clk 0:01:33.7]} 25. bxc3 {[%clk
0:01:17.7]} 25... Qxc3 {[%clk 0:01:24]} 26. Bd2 {[%clk 0:01:09.4]} 26... Qd4
{[%clk 0:01:23.9]} 27. Bc2 {[%clk 0:00:59.2]} 27... Nc4 {[%clk 0:01:21.4]} 28.
Rxa8 {[%clk 0:00:46]} 28... Rxa8 {[%clk 0:01:21.5]} 29. Bc1 {[%clk 0:00:39.7]}
29... Qc5 {[%clk 0:00:56.6]} 30. Ne3 {[%clk 0:00:32.5]} 30... Bh4 {[%clk
0:00:48.6]} 31. Bd3 {[%clk 0:00:25.4]} 31... Nb6 {[%clk 0:00:37.9]} 32. Bd2
{[%clk 0:00:19.9]} 32... Na4 {[%clk 0:00:32.7]} 33. Ra1 {[%clk 0:00:17.3]} 33...
Qd4 {[%clk 0:00:29]} 34. Bf1 {[%clk 0:00:16.9]} 34... Rc8 {[%clk 0:00:25.3]} 35.
f3 {[%clk 0:00:15.5]} 35... Bg5 {[%clk 0:00:20.8]} 36. Qe1 {[%clk 0:00:16]}
36... Rc2 {[%clk 0:00:20]} 37. Ra3 {[%clk 0:00:13.8]} 37... Rxd2 {[%clk
0:00:19.6]} 38. Kh1 {[%clk 0:00:09.7]} 38... Nb2 {[%clk 0:00:17]} 39. Rb3 {[%clk
0:00:09.4]} 39... Kg7 {[%clk 0:00:16.8]} 40. h4 {[%clk 0:00:07.4]} 40... Bxe3
{[%clk 0:00:15.5]} 41. Rxe3 {[%clk 0:00:07.6]} 41... Rd1 {[%clk 0:00:16.1]} 42.
Qf2 {[%clk 0:00:07.8]} 42... Rxf1+ {[%clk 0:00:16.2]} 0-1

[Event "Late-Titled-Tuesday-Blitz-September-19-2023"]
[Site "Chess.com"]
[Date "2023.09.19"]
[Round "2"]
[White "CraiggoryC"]
[Black "Flaccidmoves"]
[Result "1-0"]
[WhiteElo "2242"]
[BlackElo "2443"]
[TimeControl "180+1"]
[EndTime "14:17:14 PDT"]
[Termination "CraiggoryC won by checkmate"]

1. e4 {[%clk 0:03:00.9]} 1... c6 {[%clk 0:03:00.2]} 2. d4 {[%clk 0:03:00.9]}
2... d5 {[%clk 0:03:00.7]} 3. e5 {[%clk 0:03:01.5]} 3... c5 {[%clk 0:03:00.3]}
4. dxc5 {[%clk 0:03:01.1]} 4... Nc6 {[%clk 0:02:59.7]} 5. a3 {[%clk 0:03:01.5]}
5... Nxe5 {[%clk 0:02:57.5]} 6. b4 {[%clk 0:02:58.9]} 6... Nf6 {[%clk
0:02:55.6]} 7. Bb2 {[%clk 0:02:54.9]} 7... Ng6 {[%clk 0:02:47.5]} 8. Nf3 {[%clk
0:02:52]} 8... e6 {[%clk 0:02:42.3]} 9. Bd3 {[%clk 0:02:49.1]} 9... Be7 {[%clk
0:02:41.9]} 10. g3 {[%clk 0:02:40.1]} 10... O-O {[%clk 0:02:38.4]} 11. h4 {[%clk
0:02:39.8]} 11... Re8 {[%clk 0:02:12.8]} 12. h5 {[%clk 0:02:34.5]} 12... Nf8
{[%clk 0:02:13.3]} 13. h6 {[%clk 0:02:34.9]} 13... g6 {[%clk 0:02:13.7]} 14. Kf1
{[%clk 0:02:21.1]} 14... Ng4 {[%clk 0:01:44.3]} 15. Nbd2 {[%clk 0:01:49.4]}
15... Bf6 {[%clk 0:01:42.9]} 16. Nd4 {[%clk 0:01:38.3]} 16... e5 {[%clk
0:01:41.3]} 17. Nb5 {[%clk 0:01:35.6]} 17... e4 {[%clk 0:01:36.2]} 18. Be2
{[%clk 0:01:20.6]} 18... Bxb2 {[%clk 0:01:23.6]} 19. Bxg4 {[%clk 0:01:20.5]}
19... Bxg4 {[%clk 0:01:16.6]} 20. Qb1 {[%clk 0:01:20.2]} 20... Bxa1 {[%clk
0:00:56.9]} 21. Qxa1 {[%clk 0:01:20.2]} 21... d4 {[%clk 0:00:57.6]} 22. Nd6
{[%clk 0:01:12.6]} 22... e3 {[%clk 0:00:48.7]} 23. Qxd4 {[%clk 0:01:09.2]} 23...
Ne6 {[%clk 0:00:34.3]} 24. Qxe3 {[%clk 0:01:07.8]} 24... Qg5 {[%clk 0:00:33.7]}
25. Qc3 {[%clk 0:00:57.2]} 25... Qd5 {[%clk 0:00:32.1]} 26. N2e4 {[%clk
0:00:54.4]} 26... Qd4 {[%clk 0:00:19.7]} 27. Nf6+ {[%clk 0:00:54.3]} 27... Kf8
{[%clk 0:00:19]} 28. Qxd4 {[%clk 0:00:44]} 28... Nxd4 {[%clk 0:00:19.8]} 29.
Ndxe8 {[%clk 0:00:41.8]} 29... Bf3 {[%clk 0:00:18.6]} 30. Rh4 {[%clk 0:00:40.9]}
30... Nxc2 {[%clk 0:00:16]} 31. Rf4 {[%clk 0:00:36.5]} 31... Bc6 {[%clk
0:00:14.1]} 32. Nd6 {[%clk 0:00:34.1]} 32... Rd8 {[%clk 0:00:13.2]} 33. Nxh7+
{[%clk 0:00:32.9]} 33... Ke7 {[%clk 0:00:12.3]} 34. Rxf7+ {[%clk 0:00:33]} 34...
Ke6 {[%clk 0:00:12.4]} 35. Ng5+ {[%clk 0:00:32.7]} 35... Ke5 {[%clk 0:00:12.2]}
36. h7 {[%clk 0:00:31.1]} 36... Bd5 {[%clk 0:00:11.2]} 37. Re7+ {[%clk
0:00:28.8]} 37... Kd4 {[%clk 0:00:11.5]} 38. Re8 {[%clk 0:00:29.3]} 38... Rxe8
{[%clk 0:00:06]} 39. Nxe8 {[%clk 0:00:29.3]} 39... Nxa3 {[%clk 0:00:04.4]} 40.
h8=Q+ {[%clk 0:00:29.6]} 40... Kc4 {[%clk 0:00:04.7]} 41. Nd6+ {[%clk
0:00:27.1]} 41... Kxb4 {[%clk 0:00:04.5]} 42. Qd4+ {[%clk 0:00:27]} 42... Bc4+
{[%clk 0:00:04.9]} 43. Nxc4 {[%clk 0:00:26.7]} 43... Nxc4 {[%clk 0:00:05.8]} 44.
Ne4 {[%clk 0:00:25.7]} 44... Kb5 {[%clk 0:00:04.4]} 45. Nd6+ {[%clk 0:00:25.7]}
45... Nxd6 {[%clk 0:00:02.5]} 46. cxd6 {[%clk 0:00:26.1]} 46... a5 {[%clk
0:00:02.6]} 47. d7 {[%clk 0:00:26.5]} 47... Ka6 {[%clk 0:00:02.8]} 48. d8=Q
{[%clk 0:00:26.3]} 48... Kb5 {[%clk 0:00:02.1]} 49. Q8b6# {[%clk 0:00:26.1]} 1-0

[Event "Late-Titled-Tuesday-Blitz-September-19-2023"]
[Site "Chess.com"]
[Date "2023.09.19"]
[Round "2"]
[White "Championnn-9"]
[Black "ljm509"]
[Result "1-0"]
[WhiteElo "2509"]
[BlackElo "2342"]
[TimeControl "180+1"]
[EndTime "14:17:17 PDT"]
[Termination "Championnn-9 won by checkmate"]

1. d4 {[%clk 0:02:59.8]} 1... Nf6 {[%clk 0:02:41.5]} 2. c4 {[%clk 0:02:59.4]}
2... e6 {[%clk 0:02:40.6]} 3. Nf3 {[%clk 0:02:56.5]} 3... d5 {[%clk 0:02:40.3]}
4. e3 {[%clk 0:02:50.4]} 4... c5 {[%clk 0:02:39.8]} 5. Nc3 {[%clk 0:02:43.3]}
5... dxc4 {[%clk 0:02:37.1]} 6. Bxc4 {[%clk 0:02:38.7]} 6... a6 {[%clk
0:02:37.1]} 7. O-O {[%clk 0:02:36.4]} 7... Be7 {[%clk 0:02:33.2]} 8. b3 {[%clk
0:02:26]} 8... O-O {[%clk 0:02:32.7]} 9. Bb2 {[%clk 0:02:26]} 9... b5 {[%clk
0:02:32.6]} 10. Be2 {[%clk 0:02:26.1]} 10... Bb7 {[%clk 0:02:33.2]} 11. Ne5
{[%clk 0:02:20]} 11... Nbd7 {[%clk 0:02:32.6]} 12. Bf3 {[%clk 0:02:14.5]} 12...
Bxf3 {[%clk 0:02:31.6]} 13. Nxf3 {[%clk 0:02:14.3]} 13... Qb6 {[%clk 0:02:29.6]}
14. Qe2 {[%clk 0:02:09.3]} 14... Rfd8 {[%clk 0:02:28.6]} 15. Rac1 {[%clk
0:02:08.5]} 15... Rac8 {[%clk 0:02:28.4]} 16. Rfd1 {[%clk 0:02:07.1]} 16... h6
{[%clk 0:02:22.3]} 17. d5 {[%clk 0:02:06.1]} 17... exd5 {[%clk 0:02:21.1]} 18.
Nxd5 {[%clk 0:02:06]} 18... Nxd5 {[%clk 0:02:21]} 19. Rxd5 {[%clk 0:02:06.9]}
19... Nf6 {[%clk 0:02:19.3]} 20. Re5 {[%clk 0:02:01.6]} 20... Rd7 {[%clk
0:02:01.4]} 21. Nh4 {[%clk 0:01:41.4]} 21... Rd5 {[%clk 0:01:02.5]} 22. Nf5
{[%clk 0:01:27.5]} 22... Rxe5 {[%clk 0:00:54.8]} 23. Bxe5 {[%clk 0:01:28.4]}
23... Bf8 {[%clk 0:00:49.6]} 24. Qf3 {[%clk 0:01:21]} 24... Re8 {[%clk
0:00:47.2]} 25. Nxh6+ {[%clk 0:01:18.9]} 25... gxh6 {[%clk 0:00:34.9]} 26. Bxf6
{[%clk 0:01:16.1]} 26... Re6 {[%clk 0:00:31.4]} 27. Qg4+ {[%clk 0:01:11]} 27...
Kh7 {[%clk 0:00:31.1]} 28. Qf5+ {[%clk 0:01:10.9]} 28... Kg8 {[%clk 0:00:29.6]}
29. Bb2 {[%clk 0:01:11]} 29... c4 {[%clk 0:00:20]} 30. Bd4 {[%clk 0:01:04]}
30... Qc6 {[%clk 0:00:18.7]} 31. bxc4 {[%clk 0:00:58.8]} 31... bxc4 {[%clk
0:00:18.6]} 32. Qg4+ {[%clk 0:00:58.6]} 32... Rg6 {[%clk 0:00:18.4]} 33. Qh3
{[%clk 0:00:55.5]} 33... Qa4 {[%clk 0:00:13.8]} 34. Qc8 {[%clk 0:00:47.9]} 34...
Qxa2 {[%clk 0:00:13.3]} 35. Bc5 {[%clk 0:00:44.5]} 35... Qb2 {[%clk 0:00:06.1]}
36. Qxf8+ {[%clk 0:00:44.2]} 36... Kh7 {[%clk 0:00:06.1]} 37. Qxf7+ {[%clk
0:00:44.8]} 37... Rg7 {[%clk 0:00:06]} 38. Qf5+ {[%clk 0:00:45.4]} 38... Kg8
{[%clk 0:00:06.3]} 39. Qd5+ {[%clk 0:00:43.2]} 39... Kh7 {[%clk 0:00:05.9]} 40.
Qxc4 {[%clk 0:00:43.2]} 40... Qf6 {[%clk 0:00:04.5]} 41. Qd3+ {[%clk 0:00:39.8]}
41... Rg6 {[%clk 0:00:03.2]} 42. Bd4 {[%clk 0:00:39]} 42... Qg5 {[%clk
0:00:01.3]} 43. Rc7+ {[%clk 0:00:37.1]} 43... Kg8 {[%clk 0:00:01.2]} 44. Qc4+
{[%clk 0:00:34.8]} 44... Kf8 {[%clk 0:00:01.1]} 45. Qf7# {[%clk 0:00:34.8]} 1-0